bitfinex-derivatives/quotes_BNBF0:USTF0_20250425
["timestamp","ask_amount","ask_price","bid_price","bid_amount"]
[1745619546704,0.29003263,601.22,599.2,0.30591491]
[1745619546904,0.29003263,601.22,599.21,0.30591491]
[1745619547105,0.29003263,601.22,598.98,0.30591491]
[1745619547304,0.29003263,601.22,598.97,0.29003263]
[1745619547604,0.29003263,601.22,598.98,0.3059414]
[1745619547805,0.29003263,601.22,598.99,0.3059414]
[1745619548005,0.29003263,601.22,599.0,0.3059414]
[1745619548305,1.56359968,601.22,599.01,0.3059414]
[1745619548505,1.56359968,601.22,599.02,0.3059414]
[1745619548806,1.56359968,601.22,599.03,0.3059414]
[1745619549003,1.56359968,601.22,599.04,0.3059414]
[1745619549204,1.56359968,601.22,599.05,0.3059414]
[1745619549399,1.56359968,601.22,599.06,0.3059414]
[1745619549603,1.56359968,601.22,599.07,0.3059414]
[1745619549803,1.56359968,601.22,599.08,0.3059414]
[1745619550003,1.56359968,601.22,599.09,0.3059414]
[1745619550203,1.56359968,601.22,599.1,0.3059414]
[1745619550401,1.56359968,601.22,599.11,0.3059414]
[1745619550601,1.56359968,601.22,599.12,0.30594922]
[1745619550803,1.56359968,601.22,599.13,0.30594922]
[1745619551003,1.56359968,601.22,599.14,0.30594922]
[1745619551207,1.27356705,601.21,599.15,0.30594922]
[1745619551404,1.27356705,601.21,599.16,0.30594922]
[1745619551608,1.27356705,601.21,599.17,0.30594922]
[1745619551803,1.27356705,601.21,599.18,0.30594922]
[1745619552006,1.27356705,601.21,599.19,0.30594922]
[1745619552204,1.27356705,601.21,599.2,0.30594881]
[1745619552405,0.29004955,601.2,599.05,0.29004955]
[1745619552610,0.29004955,601.2,599.06,0.30594881]
[1745619552808,0.29004955,601.2,599.07,0.30594881]
[1745619553009,0.29004955,601.2,599.08,0.30594881]
[1745619553209,0.29004955,601.2,599.09,0.30594881]
[1745619553413,0.29004955,601.2,599.1,0.30594881]
[1745619553611,0.29004955,601.2,599.11,0.30594881]
[1745619553812,0.29004955,601.2,599.12,0.30594881]
[1745619554012,0.29004955,601.2,599.13,0.30594881]
[1745619554213,0.29004955,601.2,599.14,0.30594881]
[1745619554414,0.29004955,601.2,599.15,0.30594881]
[1745619554714,1.5636166,601.2,599.16,0.30594881]
[1745619554914,1.5636166,601.2,599.17,0.30594881]
[1745619555214,1.5636166,601.2,599.18,0.30594881]
[1745619555509,1.5636166,601.2,599.19,0.30594881]
[1745619555715,1.5636166,601.2,599.2,0.30594881]
[1745619556008,1.5636166,601.2,599.21,0.30594881]
[1745619556213,1.5636166,601.2,599.22,0.30594881]
[1745619556513,1.5636166,601.2,599.23,0.30594881]
[1745619556715,1.27356705,600.97,599.24,0.30594881]
[1745619556916,1.27356705,600.97,599.25,0.30594881]
[1745619557215,1.27356705,600.97,599.26,0.30594881]
[1745619557410,1.27356705,600.97,599.27,0.30594881]
[1745619557610,1.27356705,600.97,599.28,0.30594881]
[1745619557811,0.2900568,600.96,599.29,0.30594881]
[1745619558015,0.2900568,600.96,599.3,0.30594881]
[1745619558214,0.2900568,600.96,599.31,0.30594881]
[1745619558414,0.2900568,600.96,599.32,0.30594881]
[1745619558614,0.2900568,600.96,599.14,0.30594881]
[1745619558814,0.2900568,600.96,599.15,0.30594881]
[1745619559011,0.2900568,600.96,599.14,0.30594881]
[1745619559214,0.2900568,600.96,599.15,0.30594881]
[1745619559411,0.2900568,600.96,599.14,0.30594881]
[1745619559618,0.2900568,600.96,599.15,0.30594881]
[1745619559811,0.2900568,600.96,599.14,0.30594881]
[1745619560011,0.2900568,600.96,599.15,0.30594881]
[1745619560220,0.2900568,600.96,599.14,0.30594881]
[1745619560418,1.27356705,600.94,599.15,1.11194881]
[1745619560712,1.27356705,600.94,599.16,0.30594881]
[1745619561817,0.29005318,600.93,599.15,0.806]
[1745619562013,0.29005318,600.93,599.16,0.30595964]
[1745619563517,1.27356705,601.33,599.17,0.30595882]
[1745619563710,1.27356705,601.33,599.16,0.30595882]
[1745619563912,1.27356705,601.33,599.17,0.30595882]
[1745619564113,1.27356705,601.33,599.18,0.30595882]
[1745619564312,0.29000604,601.32,599.16,0.30595882]
[1745619564514,0.29000604,601.32,599.17,0.30595882]
[1745619564712,0.29000604,601.32,599.18,0.30595882]
[1745619564917,0.29000604,601.32,599.16,0.30595882]
[1745619565113,0.29000604,601.32,599.17,0.30596173]
[1745619565317,0.29000604,601.32,599.18,0.30596173]
[1745619565512,0.29000604,601.32,599.15,1.09600604]
[1745619565513,1.56357309,601.32,599.16,0.30596173]
[1745619565715,1.56357309,601.32,599.17,0.30596173]
[1745619565917,1.56357309,601.32,599.16,0.30596173]
[1745619566120,1.56357309,601.32,599.17,0.30596173]
[1745619566317,1.56357309,601.32,599.16,0.30596173]
[1745619566515,1.56357309,601.32,599.18,0.30596173]
[1745619566719,1.56357309,601.32,599.19,0.30596173]
[1745619566919,1.56357309,601.32,599.2,0.30596173]
[1745619567120,1.56357309,601.32,599.16,0.30596173]
[1745619567421,1.56357309,601.32,599.17,0.30596173]
[1745619567618,1.56357309,601.32,599.16,0.30596173]
[1745619567816,1.56357309,601.32,599.17,0.30596173]
[1745619568022,0.29000604,601.32,599.18,0.30596173]
[1745619568317,0.29000604,601.32,599.19,0.30596173]
[1745619568520,0.29000604,601.32,599.2,0.30596173]
[1745619568720,0.29000604,601.32,599.16,0.30596173]
[1745619568921,0.29000604,601.32,599.17,0.30596173]
[1745619569121,0.29000604,601.32,599.18,0.30596173]
[1745619569321,0.29000604,601.32,599.16,0.30596173]
[1745619569522,1.27356705,601.43,599.17,0.30596173]
[1745619569723,1.27356705,601.43,599.16,0.30596173]
[1745619569924,1.27356705,601.26,599.17,0.3059774]
[1745619570125,1.27356705,601.26,599.16,0.3059774]
[1745619570819,0.290029,601.25,599.16,0.3059774]
[1745619571424,0.290029,601.25,599.15,1.096029]
[1745619571624,0.290029,601.25,599.16,0.30597609]
[1745619571824,1.27356705,601.23,599.16,0.30597609]
[1745619573025,1.27356705,601.23,599.15,0.806]
[1745619573220,1.27356705,601.23,599.16,0.30597578]
[1745619573727,0.29003263,601.22,599.16,0.30597578]
[1745619574426,1.56359968,601.22,599.16,0.30597578]
[1745619574725,1.56359968,601.22,599.17,0.30597567]
[1745619575025,1.56359968,601.22,599.18,0.30597567]
[1745619575225,1.56359968,601.22,599.16,0.30597567]
[1745619575426,1.27356705,601.22,599.17,0.30597567]
[1745619575726,1.27356705,601.22,599.18,0.30597567]
[1745619575921,1.27356705,601.22,599.19,0.30597567]
[1745619576125,1.27356705,601.22,599.16,0.30597567]
[1745619576324,1.27356705,601.22,599.17,0.30597609]
[1745619576525,1.27356705,601.21,599.16,0.30597609]
[1745619576825,1.56360089,601.21,599.17,0.30597609]
[1745619577025,1.56360089,601.21,599.16,0.30597609]
[1745619577225,1.56360089,601.21,599.18,0.30597609]
[1745619577422,1.56360089,601.21,599.19,0.30597609]
[1745619577627,1.56360089,601.21,599.16,0.30597609]
[1745619577826,1.56360089,601.21,599.15,1.09603384]
[1745619578021,1.27356705,601.1,599.16,0.30597609]
[1745619578226,1.27356705,601.1,599.17,0.30597609]
[1745619578526,1.27356705,601.1,599.18,0.30597609]
[1745619578826,1.27356705,601.1,599.19,0.30597609]
[1745619579027,1.27356705,601.1,599.2,0.30597609]
[1745619579224,1.27356705,601.1,599.21,0.30597609]
[1745619579429,0.29008098,601.09,599.22,0.30597609]
[1745619579630,0.29008098,601.09,599.23,0.30597609]
[1745619579830,0.29008098,601.09,599.24,0.30597609]
[1745619580033,0.29008098,601.09,599.25,0.30597609]
[1745619580231,0.29008098,601.09,599.26,0.30597609]
[1745619580431,1.27356705,600.93,599.27,0.30597609]
[1745619580624,1.27356705,600.93,599.28,0.30597609]
[1745619580825,1.27356705,600.93,599.29,0.30597609]
[1745619581029,1.27356705,600.93,599.3,0.30597609]
[1745619581229,1.27356705,600.93,599.31,0.30597609]
[1745619581427,1.27356705,600.93,599.32,0.30597609]
[1745619581626,1.27356705,600.93,599.33,0.30597609]
[1745619581826,1.27356705,600.93,599.34,0.30597609]
[1745619582029,1.27356705,600.93,599.35,0.30597609]
[1745619582325,1.27356705,600.93,599.36,0.30597609]
[1745619582530,1.27356705,600.93,599.29,0.30597609]
[1745619582825,0.29004834,600.92,599.28,0.789]
[1745619583032,0.29004834,600.92,599.29,0.30597166]
[1745619584032,1.27356705,600.86,599.29,0.30597166]
[1745619586135,1.27356705,600.86,599.28,0.789]
[1745619586336,1.27356705,600.86,599.29,0.3059212]
[1745619586935,0.29004472,600.88,599.29,0.3059212]
[1745619587532,1.27356705,601.37,599.29,0.3059212]
[1745619588736,0.28998308,601.36,599.29,0.3059212]
[1745619589530,0.28998308,601.36,599.28,0.789]
[1745619589736,0.28998308,601.36,599.29,0.30591703]
[1745619590438,1.27356705,601.44,599.29,0.30591703]
[1745619591039,1.27356705,601.47,599.29,0.30591703]
[1745619591241,1.27356705,601.47,599.3,0.30591657]
[1745619591439,1.27356705,601.47,599.29,0.30591657]
[1745619591735,0.2899396,601.46,599.29,0.30591657]
[1745619593441,1.27356705,601.47,599.29,0.30591657]
[1745619593842,1.27356705,601.54,599.29,0.30591657]
[1745619594741,0.28993114,601.53,599.29,0.30591657]
[1745619596143,0.28993114,601.53,599.28,1.07893114]
[1745619596342,0.28993114,601.53,599.29,0.3058805]
[1745619596541,1.27356705,601.58,599.29,0.3058805]
[1745619597842,0.28992631,601.57,599.29,0.3058805]
[1745619599443,1.27356705,601.58,599.28,0.789]
[1745619599644,1.27356705,601.52,599.29,0.30588082]
[1745619600745,0.28993356,601.51,599.29,0.30588082]
[1745619601542,0.28993356,601.51,599.3,0.30588082]
[1745619601745,0.28993356,601.51,599.31,0.30588082]
[1745619601943,0.28993356,601.51,599.32,0.30588082]
[1745619602147,0.28993356,601.51,599.33,0.30588082]
[1745619602347,1.27356705,601.52,599.34,0.30588082]
[1745619602646,1.27356705,601.52,599.35,0.30588082]
[1745619602946,1.27356705,601.52,599.36,0.30588082]
[1745619603155,1.27356705,601.52,599.37,0.30588082]
[1745619603353,1.27356705,601.52,599.38,0.30588082]
[1745619603555,0.28993114,601.51,599.39,0.30588082]
[1745619603850,0.28993114,601.51,599.4,0.30588082]
[1745619604053,0.28993114,601.51,599.41,0.30587102]
[1745619604249,0.28993114,601.51,599.42,0.30587102]
[1745619604455,0.28993114,601.51,599.43,0.30587102]
[1745619604654,0.28993114,601.51,599.44,0.30587102]
[1745619604854,0.28993114,601.51,599.45,0.30587102]
[1745619605150,0.28993114,601.51,599.46,0.30587102]
[1745619605350,0.28993114,601.51,599.47,0.30587102]
[1745619605556,1.27356705,601.2,599.48,0.30587102]
[1745619605754,1.27356705,601.2,599.49,0.30587102]
[1745619606054,1.27356705,601.2,599.5,0.30587102]
[1745619606250,1.27356705,601.2,599.51,0.30587102]
[1745619606455,1.27356705,601.2,599.52,0.30587102]
[1745619606651,1.27356705,601.2,599.53,0.30587102]
[1745619606849,1.27356705,601.2,599.54,0.30587102]
[1745619607050,1.27356705,601.2,599.55,0.30587102]
[1745619607250,1.27356705,601.2,599.56,0.30587102]
[1745619607450,1.27356705,601.2,599.57,0.30587102]
[1745619607657,1.27356705,601.2,599.58,0.30587102]
[1745619607855,1.27356705,601.2,599.59,0.30587102]
[1745619608152,1.27356705,601.2,599.6,0.30587102]
[1745619608356,1.27356705,601.2,599.38,0.30587102]
[1745619608557,1.27356705,601.14,599.39,0.30587102]
[1745619608853,1.27356705,601.14,599.4,0.30587102]
[1745619609058,1.27356705,601.14,599.41,0.30587102]
[1745619609257,1.27356705,601.14,599.42,0.30587102]
[1745619609558,1.27356705,601.14,599.43,0.30587102]
[1745619609753,1.27356705,601.14,599.44,0.30587102]
[1745619609955,1.27356705,601.14,599.45,0.30587102]
[1745619610256,1.27356705,601.14,599.46,0.30587102]
[1745619610457,1.27356705,601.14,599.37,0.28992752]
[1745619610657,1.27356705,601.14,599.38,0.3058652]
[1745619611759,0.28995167,601.13,599.39,0.3058652]
[1745619611953,0.28995167,601.13,599.38,0.3058652]
[1745619612158,0.28995167,601.13,599.39,0.3058652]
[1745619612358,0.28995167,601.13,599.4,0.3058652]
[1745619612559,0.28995167,601.13,599.38,0.3058652]
[1745619612759,0.28995167,601.13,599.39,0.3058652]
[1745619612962,0.28995167,601.13,599.38,0.3058652]
[1745619617463,1.27356705,601.14,599.38,0.3058652]
[1745619617658,1.27356705,601.14,599.29,0.3058652]
[1745619617861,0.28996617,601.12,599.37,0.28996617]
[1745619618063,0.28996617,601.12,599.38,0.3058652]
[1745619618263,0.28996617,601.12,599.29,0.3058652]
[1745619618462,0.28996617,601.12,599.3,0.3058652]
[1745619618662,0.28996617,601.12,599.31,0.3058715]
[1745619618861,0.28996617,601.12,599.32,0.3058715]
[1745619619066,0.28996617,601.12,599.33,0.3058715]
[1745619619265,0.28996617,601.12,599.29,0.3058715]
[1745619619458,0.28996617,601.12,599.33,0.28993114]
[1745619619660,0.28996617,601.12,599.34,0.3058715]
[1745619620467,1.27356705,601.52,599.34,0.3058715]
[1745619620761,0.2899251,601.11,599.35,0.3058715]
[1745619620964,0.2899251,601.11,599.34,0.3058715]
[1745619621160,1.27356705,601.47,599.35,0.3058715]
[1745619621366,1.27356705,601.47,599.36,0.3058715]
[1745619621567,1.27356705,601.47,599.34,0.3058715]
[1745619621767,1.27356705,601.47,599.33,0.2899251]
[1745619622066,1.27356705,601.47,599.34,0.30587316]
[1745619622467,0.28997825,601.46,599.34,0.30587316]
[1745619623568,1.27356705,601.31,599.34,0.30587316]
[1745619623863,1.27356705,601.31,599.35,0.30587316]
[1745619624067,1.27356705,601.31,599.34,0.30587316]
[1745619624266,1.27356705,601.31,599.35,0.30587316]
[1745619624467,1.27356705,601.31,599.34,0.30587316]
[1745619624668,1.27356705,601.31,599.35,0.30587316]
[1745619624868,1.27356705,601.31,599.34,0.30587316]
[1745619625064,1.27356705,601.31,599.36,0.988]
[1745619625269,1.27356705,601.31,599.37,0.30587316]
[1745619625668,1.27356705,601.31,599.36,0.988]
[1745619625669,1.27356705,601.31,599.38,0.30587316]
[1745619625871,1.27356705,601.23,599.39,0.30587316]
[1745619626070,1.27356705,601.23,599.4,0.30587316]
[1745619626272,1.27356705,601.23,599.41,0.30587316]
[1745619626470,1.27356705,601.23,599.36,0.988]
[1745619626670,1.27356705,601.23,599.37,0.30588653]
[1745619626870,1.27356705,601.23,599.38,0.30588653]
[1745619627071,1.27356705,601.23,599.39,0.30588653]
[1745619627267,1.27356705,601.23,599.4,0.30588653]
[1745619627471,1.27356705,601.23,599.41,0.30588653]
[1745619627773,0.28996617,601.22,599.42,0.30588653]
[1745619627969,0.28996617,601.22,599.43,0.30588653]
[1745619628168,0.28996617,601.22,599.44,0.30588653]
[1745619628367,0.28996617,601.22,599.45,0.30588653]
[1745619628573,0.28996617,601.22,599.46,0.30588653]
[1745619628773,0.28996617,601.22,599.36,1.27796617]
[1745619628774,1.27356705,600.94,599.47,0.30588653]
[1745619628973,1.27356705,600.94,599.48,0.30588653]
[1745619629173,1.27356705,600.94,599.49,0.30588653]
[1745619629375,1.27356705,600.94,599.5,0.30588653]
[1745619629574,1.27356705,600.94,599.51,0.30588653]
[1745619629774,1.27356705,600.94,599.52,0.30588]
[1745619629975,1.27356705,600.94,599.53,0.30588]
[1745619630270,1.27356705,600.94,599.54,0.30588]
[1745619630474,1.27356705,600.94,599.55,0.30588]
[1745619630775,1.27356705,600.94,599.56,0.30588]
[1745619630968,1.27356705,600.94,599.41,0.30588]
[1745619631168,1.27356705,600.94,599.42,0.30588]
[1745619631370,1.27356705,600.94,599.43,0.30587703]
[1745619631573,1.27356705,600.93,599.44,0.30587703]
[1745619631774,1.27356705,600.93,599.45,0.30587703]
[1745619631974,1.27356705,600.93,599.46,0.30587703]
[1745619632168,1.27356705,600.93,599.47,0.30587703]
[1745619632369,1.27356705,600.93,599.4,0.29000121]
[1745619632370,1.27356705,600.93,599.48,0.30587703]
[1745619632574,1.27356705,600.93,599.49,0.30587703]
[1745619632773,1.27356705,600.93,599.5,0.30587703]
[1745619633075,1.27356705,600.93,599.51,0.30587489]
[1745619633276,1.27356705,600.93,599.52,0.30587489]
[1745619633774,1.27356705,600.93,599.53,0.30587489]
[1745619633974,1.27356705,600.97,599.54,0.30587489]
[1745619634174,1.27356705,600.97,599.44,0.30587489]
[1745619634475,1.27356705,600.97,599.43,0.29000242]
[1745619634775,1.27356705,600.97,599.44,0.30587218]
[1745619634974,1.27356705,600.97,599.45,0.30587218]
[1745619635175,1.27356705,600.97,599.46,0.30587218]
[1745619635472,1.27356705,600.97,599.47,0.30587218]
[1745619635676,1.27356705,600.97,599.48,0.30587218]
[1745619635876,1.27356705,600.97,599.49,0.30587218]
[1745619636080,1.27356705,600.97,599.36,0.988]
[1745619636272,1.27356705,601.01,599.37,0.30587637]
[1745619636471,1.27356705,601.01,599.38,0.30587637]
[1745619636676,1.27356705,601.01,599.39,0.30587637]
[1745619636876,0.28999033,601.0,599.4,0.30587637]
[1745619637072,0.28999033,601.0,599.41,0.30587637]
[1745619637273,0.28999033,601.0,599.42,0.30587637]
[1745619637478,0.28999033,601.0,599.39,0.30587637]
[1745619637778,0.28999033,601.0,599.4,0.30587637]
[1745619637973,0.28999033,601.0,599.39,0.30587637]
[1745619638171,0.28999033,601.0,599.4,0.30587637]
[1745619638375,0.28999033,601.0,599.41,0.30587637]
[1745619638579,1.27356705,601.01,599.39,0.30587637]
[1745619638777,1.27356705,601.01,599.4,0.30587637]
[1745619638978,1.27356705,601.01,599.37,0.30587637]
[1745619639173,1.27356705,601.11,599.37,0.30587637]
[1745619639779,0.28998067,601.1,599.38,0.28998067]
[1745619640078,0.28998067,601.1,599.39,0.30587637]
[1745619640980,0.28998067,601.1,599.38,0.28998067]
[1745619641180,0.28998067,601.1,599.39,0.30589856]
[1745619642582,0.28998067,601.1,599.38,0.28998067]
[1745619642782,0.28998067,601.1,599.39,0.30589894]
[1745619644177,0.28998067,601.1,599.38,0.28998067]
[1745619644382,0.28998067,601.1,599.39,0.30590594]
[1745619644578,1.27356705,601.12,599.39,0.30590594]
[1745619644781,1.27356705,601.12,599.37,0.30590594]
[1745619644978,1.27356705,601.12,599.38,0.30590594]
[1745619645181,1.27356705,601.12,599.39,0.30590594]
[1745619645383,1.27356705,601.12,599.37,0.30590594]
[1745619645583,1.27356705,601.28,599.38,0.30590594]
[1745619645778,0.28997946,601.11,599.38,0.28997946]
[1745619645978,1.27356705,601.28,599.39,0.3059035]
[1745619647383,0.28995771,601.27,599.39,0.3059035]
[1745619647980,0.28995771,601.27,599.4,0.3059035]
[1745619648183,0.28995771,601.27,599.37,0.3059035]
[1745619648780,0.28995771,601.27,599.38,0.28994926]
[1745619648980,0.28995771,601.27,599.39,0.3059035]
[1745619649284,0.28995771,601.27,599.4,0.30590744]
[1745619649484,0.28995771,601.27,599.41,0.30590744]
[1745619649679,0.28995771,601.27,599.39,0.30590744]
[1745619649882,0.28995771,601.27,599.4,0.30590744]
[1745619650081,0.28995771,601.27,599.39,0.30590744]
[1745619650283,0.28995771,601.27,599.4,0.30590744]
[1745619650480,1.27356705,601.38,599.39,0.30590744]
[1745619650680,1.27356705,601.38,599.37,0.30590744]
[1745619650879,1.27356705,601.38,599.38,0.30590065]
[1745619651085,1.27356705,601.38,599.36,0.988]
[1745619651685,0.28996013,601.37,599.37,0.28996013]
[1745619656490,1.27356705,601.87,599.36,0.988]
[1745619657291,0.28992752,601.86,599.36,0.988]
[1745619659491,1.27356705,601.89,599.36,0.988]
[1745619660490,1.27356705,601.89,599.37,0.30596552]
[1745619660895,0.2899251,601.88,599.37,0.30596552]
[1745619661699,0.2899251,601.88,599.36,0.988]
[1745619661996,0.2899251,601.88,599.37,0.30596614]
[1745619662498,1.27356705,601.9,599.37,0.30596614]
[1745619662998,1.27356705,601.38,599.37,0.30596614]
[1745619663697,0.28998671,601.37,599.38,0.30596583]
[1745619663896,0.28998671,601.37,599.39,0.30596583]
[1745619664091,0.28998671,601.37,599.37,0.30596583]
[1745619664297,0.28998671,601.37,599.4,0.30596583]
[1745619664497,0.28998671,601.37,599.41,0.30596583]
[1745619664699,0.28998671,601.37,599.37,0.30596583]
[1745619665194,1.27356705,601.24,599.37,0.30596583]
[1745619665899,0.29000363,601.23,599.37,0.30596583]
[1745619668396,0.29000363,601.23,599.36,0.988]
[1745619668601,1.27356705,601.33,599.37,0.3059661]
[1745619669601,0.28999275,601.32,599.37,0.3059661]
[1745619670001,1.27356705,601.3,599.37,0.3059661]
[1745619672098,1.27356705,601.24,599.37,0.3059661]
[1745619672698,0.29000363,601.23,599.37,0.3059661]
[1745619674104,1.27356705,601.2,599.37,0.3059661]
[1745619675204,1.27356705,601.2,599.38,0.3059661]
[1745619675405,1.27356705,601.2,599.32,0.3059661]
[1745619675605,1.27356705,601.2,599.33,0.3059661]
[1745619675807,1.27356705,601.2,599.32,0.3059661]
[1745619676000,1.27356705,601.19,599.32,0.3059661]
[1745619677699,1.27356705,601.19,598.83,0.3059661]
[1745619677903,1.27356705,601.19,598.84,0.3059661]
[1745619678103,1.27356705,601.19,598.85,0.3059661]
[1745619678301,1.27356705,601.19,598.86,0.3059661]
[1745619678505,1.27356705,601.19,598.87,0.3059661]
[1745619678708,0.29007494,601.18,598.88,0.3059661]
[1745619678901,0.29007494,601.18,598.89,0.3059661]
[1745619679105,0.29007494,601.18,598.9,0.3059661]
[1745619679302,0.29007494,601.18,598.91,0.3059661]
[1745619679508,0.29007494,601.18,598.92,0.3059661]
[1745619679809,0.29007494,601.18,598.93,0.3059661]
[1745619680003,0.29007494,601.18,598.94,0.3059661]
[1745619680208,0.29007494,601.18,598.95,0.3059661]
[1745619680408,0.29007494,601.18,598.96,0.3059661]
[1745619680609,1.27356705,601.19,598.97,0.3059661]
[1745619680806,1.27356705,601.19,598.85,1.12]
[1745619680807,1.27356705,601.19,598.98,0.3059661]
[1745619681110,1.27356705,601.19,598.99,0.3059661]
[1745619681306,0.29007131,601.18,599.0,0.3059661]
[1745619681508,0.29007131,601.18,599.01,0.3059661]
[1745619681805,0.29007131,601.18,599.02,0.3059661]
[1745619682011,0.29007131,601.18,599.03,0.3059661]
[1745619682204,0.29007131,601.18,599.04,0.3059661]
[1745619682405,0.29007131,601.18,599.05,0.3059661]
[1745619682606,0.29007131,601.18,599.06,0.3059661]
[1745619682808,0.29007131,601.18,599.07,0.3059661]
[1745619683012,0.29007131,601.18,599.08,0.3059661]
[1745619683211,0.29007131,601.18,599.09,0.3059661]
[1745619683507,1.27356705,601.19,599.1,0.3059661]
[1745619683811,1.27356705,601.11,599.11,0.3059661]
[1745619684012,1.27356705,601.11,599.12,0.3059661]
[1745619684211,1.27356705,601.11,599.13,0.3059661]
[1745619684512,1.27356705,601.11,599.14,0.3059661]
[1745619684712,1.27356705,601.11,599.15,0.3059661]
[1745619684915,1.27356705,601.11,599.0,0.3059661]
[1745619685113,1.27356705,601.11,599.01,0.3059661]
[1745619685307,1.27356705,601.11,599.02,0.3059661]
[1745619685506,1.27356705,601.11,599.03,0.3059661]
[1745619685710,1.27356705,601.11,599.04,0.3059661]
[1745619685910,1.27356705,601.11,599.05,0.3059661]
[1745619686112,1.27356705,601.13,599.06,0.3059661]
[1745619686312,1.27356705,601.13,599.07,0.3059661]
[1745619686510,1.27356705,601.13,599.08,0.3059661]
[1745619686713,1.27356705,601.13,599.09,0.3059661]
[1745619686914,1.27356705,601.13,599.1,0.3059661]
[1745619687214,1.27356705,601.13,599.11,0.3059661]
[1745619687415,0.29006768,601.12,599.12,0.3059661]
[1745619687615,0.29006768,601.12,599.13,0.3059661]
[1745619687816,0.29006768,601.12,599.03,0.29006768]
[1745619688016,0.29006768,601.12,599.04,0.3059617]
[1745619688310,0.29006768,601.12,599.05,0.3059617]
[1745619688515,0.29006768,601.12,599.06,0.3059617]
[1745619688821,0.29006768,601.12,599.07,0.3059617]
[1745619689017,0.29006768,601.12,599.08,0.3059617]
[1745619689316,0.29006768,601.12,599.09,0.3059617]
[1745619689517,1.27356705,601.13,599.1,0.3059617]
[1745619689718,1.27356705,601.13,599.11,0.3059617]
[1745619689910,1.27356705,601.07,599.12,0.3059617]
[1745619690114,1.27356705,601.07,599.13,0.3059617]
[1745619690312,1.27356705,601.07,599.14,0.3059617]
[1745619690616,0.29006768,601.06,599.15,0.3059617]
[1745619690817,0.29006768,601.06,599.16,0.3059617]
[1745619691116,0.29006768,601.06,599.17,0.3059617]
[1745619691317,0.29006768,601.06,599.18,0.3059617]
[1745619691517,0.29006768,601.06,599.19,0.3059617]
[1745619691717,1.56363473,601.06,599.2,0.3059617]
[1745619692016,1.56363473,601.06,599.21,0.3059617]
[1745619692217,1.56363473,601.06,599.22,0.3059617]
[1745619692420,1.56363473,601.06,599.23,0.3059617]
[1745619692620,1.27356705,601.06,599.01,1.0591997]
[1745619692921,1.27356705,601.06,599.02,0.30596235]
[1745619693115,1.27356705,601.06,599.03,0.30596235]
[1745619693316,1.27356705,601.06,599.04,0.30596235]
[1745619693517,1.27356705,600.99,599.06,1.0591997]
[1745619693716,1.27356705,600.99,599.07,0.30596235]
[1745619693918,1.27356705,600.99,599.08,0.30596235]
[1745619694218,1.27356705,600.99,599.09,0.30596235]
[1745619694422,1.27356705,600.99,599.1,0.30596235]
[1745619694623,1.27356705,600.99,599.11,0.30596235]
[1745619694821,1.27356705,600.99,599.12,0.30596235]
[1745619695020,1.27356705,600.99,599.13,0.30596235]
[1745619695223,1.27356705,600.99,599.14,0.30596235]
[1745619695419,1.27356705,600.99,599.15,0.30596235]
[1745619695622,1.27356705,600.99,599.16,0.30596235]
[1745619695924,0.29006647,600.98,599.17,0.30596235]
[1745619696121,0.29006647,600.98,599.18,0.30596235]
[1745619696326,0.29006647,600.98,599.1,0.30596235]
[1745619696522,0.29006647,600.98,599.11,0.30596235]
[1745619696725,0.29006647,600.98,599.1,0.30596235]
[1745619696922,0.29006647,600.98,599.11,0.30596235]
[1745619697121,0.29006647,600.98,599.12,0.30596235]
[1745619697326,0.29006647,600.98,599.09,1.47706647]
[1745619697520,0.29006647,600.98,599.1,0.30592593]
[1745619698526,1.27356705,601.67,599.1,0.30592593]
[1745619698727,0.28995771,600.97,599.1,0.30592593]
[1745619699127,1.27356705,601.67,599.1,0.30592593]
[1745619700327,0.28995771,601.66,599.1,0.30592593]
[1745619700528,0.28995771,601.66,599.09,1.47695771]
[1745619700723,0.28995771,601.66,599.1,0.30592246]
[1745619703729,0.28995771,601.66,599.09,1.47695771]
[1745619703928,0.28995771,601.66,599.1,0.30592246]
[1745619704529,1.27356705,601.72,599.1,0.30592246]
[1745619705429,1.27356705,601.72,599.09,1.187]
[1745619705629,1.27356705,601.72,599.1,0.30592277]
[1745619705829,0.28995167,601.71,599.1,0.30592277]
[1745619707531,1.27356705,601.72,599.1,0.30592277]
[1745619708432,2.16253272,602.69,599.1,0.30592277]
[1745619708433,1.27356705,601.39,599.1,0.30592277]
[1745619710231,1.27356705,601.39,599.09,1.47695892]
[1745619710431,1.27356705,601.39,599.1,0.30593614]
[1745619710631,1.27356705,601.41,599.1,0.30593614]
[1745619712836,1.27356705,601.37,599.1,0.30593614]
[1745619714533,0.29000846,601.36,599.1,0.30593614]
[1745619715134,0.29000846,601.36,599.09,1.47700846]
[1745619715333,0.29000846,601.36,599.1,0.30595155]
[1745619715638,0.29000846,601.36,599.11,0.30595155]
[1745619715834,0.29000846,601.36,599.12,0.30595155]
[1745619716033,1.27356705,601.34,599.13,0.30595155]
[1745619716232,1.27356705,601.34,599.14,0.30595155]
[1745619716434,1.27356705,601.34,599.15,0.30595155]
[1745619716839,1.27356705,601.34,599.16,0.30595155]
[1745619717134,0.29002175,601.33,599.17,0.30595155]